[Event "Titled Tuesday Blitz February 07 Early 2023"]
[White "Rudzinska, Michalina"]
[Black "tuschessCM1"]
[WhiteFideId "1172883"]
[WhiteElo "2244"]
[BlackElo "2638"]
[Result "0-1"]
[Round "04"]
[TimeControl "180+2"]
[Date "2023.02.07"]
[WhiteClock "0:00:25"]
[BlackClock "0:00:11"]

1. e4 {[%clk 0:03:00]}  c6 {[%clk 0:02:59]} 2. d4 {[%clk 0:02:57]}  d5 {[%clk 0:02:56]} 3. Nc3 {[%clk 0:02:57]}  dxe4 {[%clk 0:02:56]} 4. Nxe4 {[%clk 0:02:58]}  Nf6 {[%clk 0:02:55]} 5. Nxf6+ {[%clk 0:02:57]}  exf6 {[%clk 0:02:56]} 6. c3 {[%clk 0:02:56]}  Bd6 {[%clk 0:02:56]} 7. Bd3 {[%clk 0:02:56]}  O-O {[%clk 0:02:57]} 8. Ne2 {[%clk 0:02:56]}  Re8 {[%clk 0:02:57]} 9. O-O {[%clk 0:02:56]}  Nd7 {[%clk 0:02:56]} 10. Bf4 {[%clk 0:02:55]}  Nf8 {[%clk 0:02:54]} 11. Bxd6 {[%clk 0:02:55]}  Qxd6 {[%clk 0:02:55]} 12. Ng3 {[%clk 0:02:56]}  Be6 {[%clk 0:02:52]} 13. f4 {[%clk 0:02:54]}  Bd5 {[%clk 0:02:51]} 14. Qg4 {[%clk 0:02:47]}  g6 {[%clk 0:02:48]} 15. f5 {[%clk 0:02:40]}  Re3 {[%clk 0:02:42]} 16. Rad1 {[%clk 0:02:36]}  g5 {[%clk 0:01:25]} 17. c4 {[%clk 0:02:19]}  Rxd3 {[%clk 0:01:25]} 18. Rxd3 {[%clk 0:02:20]}  Bxc4 {[%clk 0:01:25]} 19. Ne4 {[%clk 0:02:19]}  Qe7 {[%clk 0:01:19]} 20. Re3 {[%clk 0:01:50]}  Bxf1 {[%clk 0:01:17]} 21. Kxf1 {[%clk 0:01:49]}  h6 {[%clk 0:00:54]} 22. h4 {[%clk 0:01:46]}  Nh7 {[%clk 0:00:22]} 23. hxg5 {[%clk 0:01:37]}  fxg5 {[%clk 0:00:19]} 24. Re2 {[%clk 0:01:28]}  Nf6 {[%clk 0:00:15]} 25. Nxf6+ {[%clk 0:01:03]}  Qxf6 {[%clk 0:00:16]} 26. Qe4 {[%clk 0:01:02]}  Rd8 {[%clk 0:00:15]} 27. Rd2 {[%clk 0:01:00]}  Kg7 {[%clk 0:00:14]} 28. g4 {[%clk 0:01:00]}  Rd5 {[%clk 0:00:14]} 29. Qe3 {[%clk 0:00:57]}  Qd6 {[%clk 0:00:14]} 30. Rf2 {[%clk 0:00:37]}  Rxd4 {[%clk 0:00:13]} 31. f6+ {[%clk 0:00:37]}  Kh7 {[%clk 0:00:10]} 32. Qe8 {[%clk 0:00:35]}  Rd1+ {[%clk 0:00:09]} 33. Kg2 {[%clk 0:00:35]}  Qd5+ {[%clk 0:00:10]} 34. Rf3 {[%clk 0:00:28]}  Rd2+ {[%clk 0:00:10]} 35. Kg3 {[%clk 0:00:28]}  Qd6+ {[%clk 0:00:10]} 36. Kh3 {[%clk 0:00:25]}  Qh2# {[%clk 0:00:11]} 0-1


[Site "https://www.chess.com"]

[Event "Titled Tuesday Blitz February 07 Early 2023"]
[White "Seemann, Jakub"]
[Black "Marchesich, Giovanni"]
[WhiteFideId "21874697"]
[BlackFideId "2824790"]
[WhiteElo "2446"]
[BlackElo "2217"]
[Result "1-0"]
[Round "04"]
[TimeControl "180+2"]
[Date "2023.02.07"]
[WhiteClock "0:02:29"]
[BlackClock "0:01:55"]

1. c4 {[%clk 0:03:00]}  f6 {[%clk 0:02:56]} 2. Nc3 {[%clk 0:03:00]}  g6 {[%clk 0:02:56]} 3. g3 {[%clk 0:03:01]}  Nh6 {[%clk 0:02:56]} 4. Bg2 {[%clk 0:03:01]}  Nf7 {[%clk 0:02:57]} 5. e3 {[%clk 0:03:01]}  e5 {[%clk 0:02:57]} 6. Nge2 {[%clk 0:03:02]}  Bg7 {[%clk 0:02:58]} 7. O-O {[%clk 0:03:02]}  O-O {[%clk 0:02:57]} 8. d4 {[%clk 0:03:03]}  d6 {[%clk 0:02:57]} 9. b3 {[%clk 0:03:01]}  Nc6 {[%clk 0:02:58]} 10. Bb2 {[%clk 0:03:02]}  f5 {[%clk 0:02:54]} 11. dxe5 {[%clk 0:02:58]}  Nfxe5 {[%clk 0:02:52]} 12. a3 {[%clk 0:02:52]}  a5 {[%clk 0:02:51]} 13. Qc2 {[%clk 0:02:51]}  Be6 {[%clk 0:02:51]} 14. Nf4 {[%clk 0:02:48]}  Bf7 {[%clk 0:02:50]} 15. Rfd1 {[%clk 0:02:47]}  g5 {[%clk 0:02:50]} 16. Nfd5 {[%clk 0:02:46]}  Bg6 {[%clk 0:02:44]} 17. Qe2 {[%clk 0:02:42]}  Qd7 {[%clk 0:02:29]} 18. Nb5 {[%clk 0:02:39]}  Rac8 {[%clk 0:02:23]} 19. f4 {[%clk 0:02:34]}  gxf4 {[%clk 0:02:08]} 20. exf4 {[%clk 0:02:32]}  Ng4 {[%clk 0:02:05]} 21. Bxg7 {[%clk 0:02:30]}  Kxg7 {[%clk 0:02:05]} 22. Qb2+ {[%clk 0:02:29]}  Kg8 {[%clk 0:02:04]} 23. h3 {[%clk 0:02:30]}  Nh6 {[%clk 0:02:02]} 24. Nf6+ {[%clk 0:02:29]}  Rxf6 {[%clk 0:02:00]} 25. Qxf6 {[%clk 0:02:30]}  Re8 {[%clk 0:01:56]} 26. Re1 {[%clk 0:02:29]}  Rf8 {[%clk 0:01:55]} 27. Bd5+ {[%clk 0:02:29]} 1-0


[Site "https://www.chess.com"]

[Event "Titled Tuesday Blitz February 07 Early 2023"]
[White "Durarbayli, Vasif"]
[Black "Kubicka, Anna"]
[WhiteFideId "13402935"]
[BlackFideId "1152254"]
[WhiteElo "2627"]
[BlackElo "2240"]
[Result "1-0"]
[Round "04"]
[TimeControl "180+2"]
[Date "2023.02.07"]
[WhiteClock "0:00:55"]
[BlackClock "0:01:22"]

1. e4 {[%clk 0:03:00]}  c5 {[%clk 0:02:59]} 2. Nf3 {[%clk 0:03:00]}  d6 {[%clk 0:02:59]} 3. d4 {[%clk 0:03:01]}  cxd4 {[%clk 0:03:00]} 4. Nxd4 {[%clk 0:03:02]}  Nf6 {[%clk 0:03:00]} 5. Nc3 {[%clk 0:03:02]}  a6 {[%clk 0:03:01]} 6. Be2 {[%clk 0:03:03]}  e5 {[%clk 0:03:01]} 7. Nb3 {[%clk 0:03:03]}  Be7 {[%clk 0:03:02]} 8. Be3 {[%clk 0:03:04]}  Be6 {[%clk 0:03:01]} 9. O-O {[%clk 0:03:04]}  Nbd7 {[%clk 0:03:02]} 10. a4 {[%clk 0:03:03]}  O-O {[%clk 0:03:01]} 11. Bf3 {[%clk 0:03:02]}  Qc7 {[%clk 0:02:59]} 12. a5 {[%clk 0:02:58]}  Rac8 {[%clk 0:02:58]} 13. Qd2 {[%clk 0:02:51]}  Qc4 {[%clk 0:02:54]} 14. Rfc1 {[%clk 0:02:50]}  Rfd8 {[%clk 0:02:37]} 15. h3 {[%clk 0:02:46]}  Nc5 {[%clk 0:02:32]} 16. Nxc5 {[%clk 0:02:26]}  dxc5 {[%clk 0:02:33]} 17. Qe1 {[%clk 0:02:26]}  Qb4 {[%clk 0:02:13]} 18. Ra4 {[%clk 0:01:30]}  Qxb2 {[%clk 0:02:11]} 19. Raa1 {[%clk 0:00:58]}  c4 {[%clk 0:01:30]} 20. Rcb1 {[%clk 0:00:57]}  Qxc2 {[%clk 0:01:30]} 21. Ra2 {[%clk 0:00:57]}  Qd3 {[%clk 0:01:22]} 22. Rd2 {[%clk 0:00:55]} 1-0


[Site "https://www.chess.com"]

[Event "Titled Tuesday Blitz February 07 Early 2023"]
[White "Matinian, Nikita"]
[Black "Malka, Samuel"]
[WhiteFideId "24129100"]
[BlackFideId "20643675"]
[WhiteElo "2407"]
[BlackElo "2165"]
[Result "1-0"]
[Round "04"]
[TimeControl "180+2"]
[Date "2023.02.07"]
[WhiteClock "0:00:25"]
[BlackClock "0:00:24"]

1. e4 {[%clk 0:03:00]}  e5 {[%clk 0:02:59]} 2. Nf3 {[%clk 0:03:00]}  Nc6 {[%clk 0:02:59]} 3. Nc3 {[%clk 0:03:00]}  Nf6 {[%clk 0:02:58]} 4. g3 {[%clk 0:03:00]}  d5 {[%clk 0:02:54]} 5. exd5 {[%clk 0:03:01]}  Nxd5 {[%clk 0:02:54]} 6. Bg2 {[%clk 0:03:01]}  Nxc3 {[%clk 0:02:55]} 7. bxc3 {[%clk 0:03:02]}  Be7 {[%clk 0:02:47]} 8. Qe2 {[%clk 0:02:59]}  Qd6 {[%clk 0:02:21]} 9. O-O {[%clk 0:02:55]}  O-O {[%clk 0:02:18]} 10. Re1 {[%clk 0:02:55]}  Bg4 {[%clk 0:02:12]} 11. h3 {[%clk 0:02:54]}  Bxf3 {[%clk 0:01:44]} 12. Bxf3 {[%clk 0:02:54]}  Bf6 {[%clk 0:01:44]} 13. Rb1 {[%clk 0:02:51]}  Rab8 {[%clk 0:01:44]} 14. Rb5 {[%clk 0:02:40]}  Rfe8 {[%clk 0:01:43]} 15. Bg2 {[%clk 0:02:22]}  a6 {[%clk 0:01:42]} 16. Rd5 {[%clk 0:02:20]}  Qf8 {[%clk 0:01:37]} 17. Rd7 {[%clk 0:01:55]}  Nd8 {[%clk 0:01:06]} 18. d4 {[%clk 0:01:49]}  Re6 {[%clk 0:01:00]} 19. d5 {[%clk 0:01:19]}  Re8 {[%clk 0:00:51]} 20. c4 {[%clk 0:01:12]}  Qc5 {[%clk 0:00:50]} 21. Be3 {[%clk 0:01:00]}  Qa3 {[%clk 0:00:47]} 22. c5 {[%clk 0:00:53]}  b6 {[%clk 0:00:43]} 23. c6 {[%clk 0:00:48]}  Be7 {[%clk 0:00:34]} 24. Rxc7 {[%clk 0:00:42]}  Bd6 {[%clk 0:00:34]} 25. Rd7 {[%clk 0:00:42]}  Rc8 {[%clk 0:00:34]} 26. Bxb6 {[%clk 0:00:41]}  f6 {[%clk 0:00:31]} 27. Qg4 {[%clk 0:00:34]}  g6 {[%clk 0:00:29]} 28. Rxd6 {[%clk 0:00:31]}  Nf7 {[%clk 0:00:25]} 29. Rxf6 {[%clk 0:00:26]}  Qb4 {[%clk 0:00:24]} 30. Qxb4 {[%clk 0:00:25]} 1-0


[Site "https://www.chess.com"]

[Event "Titled Tuesday Blitz February 07 Early 2023"]
[White "Taspinar, Yanki"]
[Black "The_Sherman_Variation"]
[WhiteFideId "34561188"]
[WhiteElo "2262"]
[BlackElo "2461"]
[Result "1-0"]
[Round "04"]
[TimeControl "180+2"]
[Date "2023.02.07"]
[WhiteClock "0:01:28"]
[BlackClock "0:00:16"]

1. Nf3 {[%clk 0:03:00]}  Nf6 {[%clk 0:02:58]} 2. g3 {[%clk 0:03:01]}  g6 {[%clk 0:02:56]} 3. Bg2 {[%clk 0:03:02]}  Bg7 {[%clk 0:02:56]} 4. O-O {[%clk 0:03:02]}  O-O {[%clk 0:02:55]} 5. d4 {[%clk 0:03:02]}  d6 {[%clk 0:02:55]} 6. b3 {[%clk 0:03:02]}  Nbd7 {[%clk 0:02:55]} 7. Bb2 {[%clk 0:03:03]}  c6 {[%clk 0:02:54]} 8. Nbd2 {[%clk 0:03:03]}  Qc7 {[%clk 0:02:53]} 9. e4 {[%clk 0:03:03]}  e5 {[%clk 0:02:52]} 10. Re1 {[%clk 0:03:03]}  a5 {[%clk 0:02:50]} 11. a4 {[%clk 0:03:01]}  Re8 {[%clk 0:02:44]} 12. Nc4 {[%clk 0:03:01]}  Nh5 {[%clk 0:02:35]} 13. Ba3 {[%clk 0:02:53]}  Bf8 {[%clk 0:02:28]} 14. dxe5 {[%clk 0:02:48]}  Nxe5 {[%clk 0:02:27]} 15. Bxd6 {[%clk 0:02:42]}  Bxd6 {[%clk 0:02:16]} 16. Qxd6 {[%clk 0:02:41]}  Qxd6 {[%clk 0:01:58]} 17. Nxd6 {[%clk 0:02:40]}  Re6 {[%clk 0:01:54]} 18. Nxe5 {[%clk 0:02:32]}  Rxe5 {[%clk 0:01:52]} 19. f4 {[%clk 0:02:32]}  Re7 {[%clk 0:01:48]} 20. Rad1 {[%clk 0:02:28]}  Bg4 {[%clk 0:01:47]} 21. Rd2 {[%clk 0:02:22]}  Rd8 {[%clk 0:01:33]} 22. e5 {[%clk 0:02:22]}  Ng7 {[%clk 0:01:30]} 23. h3 {[%clk 0:02:22]}  Be6 {[%clk 0:01:27]} 24. Red1 {[%clk 0:02:22]}  Red7 {[%clk 0:01:25]} 25. g4 {[%clk 0:02:22]}  h5 {[%clk 0:01:23]} 26. Bf3 {[%clk 0:02:21]}  hxg4 {[%clk 0:01:22]} 27. hxg4 {[%clk 0:02:22]}  Ne8 {[%clk 0:01:18]} 28. Kf2 {[%clk 0:02:19]}  Kf8 {[%clk 0:00:57]} 29. Ke3 {[%clk 0:02:14]}  Nxd6 {[%clk 0:00:57]} 30. exd6 {[%clk 0:02:05]}  f6 {[%clk 0:00:56]} 31. Kf2 {[%clk 0:01:49]}  g5 {[%clk 0:00:54]} 32. f5 {[%clk 0:01:48]}  Bd5 {[%clk 0:00:43]} 33. c4 {[%clk 0:01:49]}  Bg8 {[%clk 0:00:39]} 34. Rd3 {[%clk 0:01:44]}  Rh7 {[%clk 0:00:37]} 35. Kg3 {[%clk 0:01:36]}  Ke8 {[%clk 0:00:36]} 36. c5 {[%clk 0:01:34]}  Kd7 {[%clk 0:00:33]} 37. Re1 {[%clk 0:01:30]}  Rf8 {[%clk 0:00:29]} 38. Rde3 {[%clk 0:01:29]}  Kc8 {[%clk 0:00:20]} 39. Re8+ {[%clk 0:01:27]}  Rxe8 {[%clk 0:00:18]} 40. Rxe8+ {[%clk 0:01:27]}  Kd7 {[%clk 0:00:18]} 41. Rxg8 {[%clk 0:01:28]}  b6 {[%clk 0:00:16]} 42. cxb6 {[%clk 0:01:28]}  c5 {[%clk 0:00:17]} 43. b7 {[%clk 0:01:28]}  c4 {[%clk 0:00:15]} 44. b8=Q {[%clk 0:01:28]}  cxb3 {[%clk 0:00:16]} 45. Qc7# {[%clk 0:01:28]} 1-0


[Site "https://www.chess.com"]

[Event "Titled Tuesday Blitz February 07 Early 2023"]
[White "Antonios, Johnny"]
[Black "Skliarov, Viktor"]
[WhiteFideId "5300843"]
[BlackFideId "14106736"]
[WhiteElo "2269"]
[BlackElo "2383"]
[Result "1-0"]
[Round "04"]
[TimeControl "180+2"]
[Date "2023.02.07"]
[WhiteClock "0:00:46"]
[BlackClock "0:00:07"]

1. e4 {[%clk 0:03:00]}  c5 {[%clk 0:02:55]} 2. Nf3 {[%clk 0:03:00]}  Nc6 {[%clk 0:02:49]} 3. Bb5 {[%clk 0:02:59]}  e6 {[%clk 0:02:49]} 4. O-O {[%clk 0:02:58]}  Nge7 {[%clk 0:02:49]} 5. Re1 {[%clk 0:02:59]}  Nd4 {[%clk 0:02:46]} 6. Nxd4 {[%clk 0:02:58]}  cxd4 {[%clk 0:02:46]} 7. c4 {[%clk 0:02:56]}  a6 {[%clk 0:02:36]} 8. Ba4 {[%clk 0:02:55]}  Rb8 {[%clk 0:02:37]} 9. d3 {[%clk 0:02:32]}  b5 {[%clk 0:02:36]} 10. cxb5 {[%clk 0:02:33]}  axb5 {[%clk 0:02:36]} 11. Bb3 {[%clk 0:02:34]}  Bb7 {[%clk 0:02:31]} 12. Na3 {[%clk 0:02:25]}  Bc6 {[%clk 0:02:25]} 13. Nc2 {[%clk 0:02:25]}  Qb6 {[%clk 0:02:21]} 14. Bf4 {[%clk 0:02:25]}  Ra8 {[%clk 0:02:18]} 15. Bd6 {[%clk 0:02:18]}  Ng6 {[%clk 0:02:13]} 16. Bxf8 {[%clk 0:02:17]}  Nxf8 {[%clk 0:02:13]} 17. Qg4 {[%clk 0:02:12]}  Ng6 {[%clk 0:02:08]} 18. e5 {[%clk 0:02:12]}  h5 {[%clk 0:01:32]} 19. Qxd4 {[%clk 0:02:09]}  Qxd4 {[%clk 0:01:33]} 20. Nxd4 {[%clk 0:02:09]}  Nf4 {[%clk 0:01:33]} 21. Nxc6 {[%clk 0:02:08]}  dxc6 {[%clk 0:01:27]} 22. Rad1 {[%clk 0:02:00]}  Ke7 {[%clk 0:01:11]} 23. g3 {[%clk 0:01:59]}  Nd5 {[%clk 0:01:08]} 24. Rc1 {[%clk 0:01:58]}  Kd7 {[%clk 0:00:55]} 25. a3 {[%clk 0:01:54]}  h4 {[%clk 0:00:52]} 26. Kf1 {[%clk 0:01:53]}  hxg3 {[%clk 0:00:51]} 27. hxg3 {[%clk 0:01:53]}  Rh2 {[%clk 0:00:51]} 28. Ke2 {[%clk 0:01:54]}  Rah8 {[%clk 0:00:50]} 29. Bxd5 {[%clk 0:01:50]}  exd5 {[%clk 0:00:50]} 30. d4 {[%clk 0:01:46]}  R8h5 {[%clk 0:00:45]} 31. Ke3 {[%clk 0:01:43]}  Rf5 {[%clk 0:00:44]} 32. Rc2 {[%clk 0:01:43]}  g5 {[%clk 0:00:38]} 33. Rec1 {[%clk 0:01:28]}  g4 {[%clk 0:00:30]} 34. f4 {[%clk 0:01:28]}  Rh3 {[%clk 0:00:24]} 35. Rg1 {[%clk 0:01:22]}  Rfh5 {[%clk 0:00:20]} 36. Rf2 {[%clk 0:01:20]}  f5 {[%clk 0:00:19]} 37. exf6 {[%clk 0:01:19]}  Rf5 {[%clk 0:00:19]} 38. Kd3 {[%clk 0:01:10]}  Ke6 {[%clk 0:00:18]} 39. Re2+ {[%clk 0:01:11]}  Kxf6 {[%clk 0:00:18]} 40. Re5 {[%clk 0:01:11]}  Kg6 {[%clk 0:00:17]} 41. Re6+ {[%clk 0:01:11]}  Rf6 {[%clk 0:00:18]} 42. Re8 {[%clk 0:01:05]}  Rxf4 {[%clk 0:00:17]} 43. Rg8+ {[%clk 0:01:04]}  Kf7 {[%clk 0:00:16]} 44. Rc8 {[%clk 0:00:55]}  Rf3+ {[%clk 0:00:16]} 45. Kc2 {[%clk 0:00:56]}  Rh2+ {[%clk 0:00:14]} 46. Kb1 {[%clk 0:00:55]}  Rff2 {[%clk 0:00:14]} 47. Rc7+ {[%clk 0:00:55]}  Kf8 {[%clk 0:00:10]} 48. Rc8+ {[%clk 0:00:54]}  Ke7 {[%clk 0:00:11]} 49. Rxc6 {[%clk 0:00:48]}  Rxb2+ {[%clk 0:00:10]} 50. Kc1 {[%clk 0:00:49]}  Ra2 {[%clk 0:00:11]} 51. Kb1 {[%clk 0:00:47]}  Rhb2+ {[%clk 0:00:07]} 52. Kc1 {[%clk 0:00:47]}  Ra1+ {[%clk 0:00:07]} 53. Kxb2 {[%clk 0:00:48]}  Rxg1 {[%clk 0:00:08]} 54. Rc5 {[%clk 0:00:47]}  Kd6 {[%clk 0:00:06]} 55. Rc3 {[%clk 0:00:47]}  Rxg3 {[%clk 0:00:07]} 56. Rxg3 {[%clk 0:00:46]} 1-0


[Site "https://www.chess.com"]

[Event "Titled Tuesday Blitz February 07 Early 2023"]
[White "Dong, Bao Nghia"]
[Black "Przybylski, Wojciech"]
[WhiteFideId "12400343"]
[BlackFideId "1117599"]
[WhiteElo "2332"]
[BlackElo "2321"]
[Result "1-0"]
[Round "04"]
[TimeControl "180+2"]
[Date "2023.02.07"]
[WhiteClock "0:00:53"]
[BlackClock "0:00:06"]

1. d4 {[%clk 0:02:59]}  Nf6 {[%clk 0:02:57]} 2. Nf3 {[%clk 0:02:59]}  d5 {[%clk 0:02:55]} 3. g3 {[%clk 0:02:59]}  Bg4 {[%clk 0:02:53]} 4. Bg2 {[%clk 0:02:59]}  e6 {[%clk 0:02:53]} 5. O-O {[%clk 0:02:59]}  Be7 {[%clk 0:02:52]} 6. b3 {[%clk 0:02:53]}  O-O {[%clk 0:02:51]} 7. a4 {[%clk 0:02:52]}  Nbd7 {[%clk 0:02:49]} 8. Bb2 {[%clk 0:02:52]}  a6 {[%clk 0:02:43]} 9. Nbd2 {[%clk 0:02:53]}  h6 {[%clk 0:02:40]} 10. Ne5 {[%clk 0:02:52]}  Bf5 {[%clk 0:02:39]} 11. Re1 {[%clk 0:02:52]}  c5 {[%clk 0:02:37]} 12. e3 {[%clk 0:02:50]}  Rc8 {[%clk 0:02:35]} 13. c4 {[%clk 0:02:50]}  Qc7 {[%clk 0:02:25]} 14. Rc1 {[%clk 0:02:47]}  Nxe5 {[%clk 0:02:22]} 15. dxe5 {[%clk 0:02:46]}  Ne4 {[%clk 0:02:20]} 16. Nf1 {[%clk 0:02:37]}  Rfd8 {[%clk 0:02:08]} 17. cxd5 {[%clk 0:02:34]}  Rxd5 {[%clk 0:01:39]} 18. Qe2 {[%clk 0:02:34]}  Rcd8 {[%clk 0:01:30]} 19. Rc2 {[%clk 0:02:34]}  R5d7 {[%clk 0:01:15]} 20. f3 {[%clk 0:02:34]}  Ng5 {[%clk 0:01:11]} 21. e4 {[%clk 0:02:34]}  Bg6 {[%clk 0:01:09]} 22. f4 {[%clk 0:02:31]}  Nh7 {[%clk 0:01:08]} 23. g4 {[%clk 0:02:29]}  Nf8 {[%clk 0:00:59]} 24. f5 {[%clk 0:02:29]}  Bh7 {[%clk 0:00:57]} 25. f6 {[%clk 0:02:29]}  gxf6 {[%clk 0:00:57]} 26. exf6 {[%clk 0:02:29]}  Bd6 {[%clk 0:00:56]} 27. e5 {[%clk 0:02:26]}  Bxc2 {[%clk 0:00:41]} 28. exd6 {[%clk 0:02:26]}  Qxd6 {[%clk 0:00:19]} 29. Qxc2 {[%clk 0:02:25]}  Qf4 {[%clk 0:00:11]} 30. Qxc5 {[%clk 0:01:55]}  Rc7 {[%clk 0:00:06]} 31. Qe5 {[%clk 0:01:40]}  Qxe5 {[%clk 0:00:07]} 32. Bxe5 {[%clk 0:01:40]}  Rc2 {[%clk 0:00:07]} 33. Bxb7 {[%clk 0:01:38]}  Ng6 {[%clk 0:00:07]} 34. Bg3 {[%clk 0:01:36]}  Rb2 {[%clk 0:00:05]} 35. Bxa6 {[%clk 0:01:36]}  Rxb3 {[%clk 0:00:06]} 36. Bb5 {[%clk 0:01:32]}  Rd4 {[%clk 0:00:05]} 37. Ne3 {[%clk 0:01:31]}  Nf4 {[%clk 0:00:04]} 38. Bxf4 {[%clk 0:01:23]}  Rxf4 {[%clk 0:00:04]} 39. h3 {[%clk 0:01:17]}  Rxf6 {[%clk 0:00:04]} 40. Bc6 {[%clk 0:01:12]}  Rc3 {[%clk 0:00:03]} 41. Bg2 {[%clk 0:01:11]}  Rf4 {[%clk 0:00:03]} 42. Nd1 {[%clk 0:01:05]}  Ra3 {[%clk 0:00:03]} 43. Bc6 {[%clk 0:01:05]}  Rb3 {[%clk 0:00:02]} 44. Kg2 {[%clk 0:01:04]}  Rd4 {[%clk 0:00:02]} 45. Nf2 {[%clk 0:01:04]}  Rd2 {[%clk 0:00:02]} 46. Kg1 {[%clk 0:01:03]}  Rbb2 {[%clk 0:00:02]} 47. Rf1 {[%clk 0:01:03]}  Ra2 {[%clk 0:00:02]} 48. Bb5 {[%clk 0:00:58]}  Rdc2 {[%clk 0:00:02]} 49. Bd3 {[%clk 0:00:58]}  Rcb2 {[%clk 0:00:02]} 50. Bb5 {[%clk 0:00:58]}  Kg7 {[%clk 0:00:02]} 51. Kg2 {[%clk 0:00:58]}  f5 {[%clk 0:00:03]} 52. gxf5 {[%clk 0:00:58]}  exf5 {[%clk 0:00:03]} 53. Kf3 {[%clk 0:00:59]}  Kf6 {[%clk 0:00:03]} 54. Nd3 {[%clk 0:00:59]}  Rb3 {[%clk 0:00:04]} 55. Ke3 {[%clk 0:00:59]}  Raa3 {[%clk 0:00:04]} 56. Kd4 {[%clk 0:01:00]}  Ra2 {[%clk 0:00:04]} 57. Bd7 {[%clk 0:01:00]}  Rba3 {[%clk 0:00:04]} 58. Rxf5+ {[%clk 0:01:00]}  Ke7 {[%clk 0:00:04]} 59. Bb5 {[%clk 0:01:00]}  Rd2 {[%clk 0:00:04]} 60. Rh5 {[%clk 0:01:00]}  Rh2 {[%clk 0:00:04]} 61. Rxh6 {[%clk 0:01:01]}  Ra1 {[%clk 0:00:05]} 62. h4 {[%clk 0:01:00]}  Rah1 {[%clk 0:00:04]} 63. a5 {[%clk 0:00:57]}  Rxh4+ {[%clk 0:00:04]} 64. Rxh4 {[%clk 0:00:58]}  Rxh4+ {[%clk 0:00:05]} 65. Kc5 {[%clk 0:00:58]}  Kd8 {[%clk 0:00:05]} 66. a6 {[%clk 0:00:57]}  Kc7 {[%clk 0:00:05]} 67. Nb4 {[%clk 0:00:58]}  Rh5+ {[%clk 0:00:05]} 68. Nd5+ {[%clk 0:00:58]}  Kb8 {[%clk 0:00:06]} 69. Bc6 {[%clk 0:00:58]}  Ka7 {[%clk 0:00:06]} 70. Bb7 {[%clk 0:00:58]}  Rh6 {[%clk 0:00:06]} 71. Nb4 {[%clk 0:00:58]}  Rg6 {[%clk 0:00:06]} 72. Kb5 {[%clk 0:00:57]}  Rg5+ {[%clk 0:00:06]} 73. Nd5 {[%clk 0:00:56]}  Rh5 {[%clk 0:00:05]} 74. Kc5 {[%clk 0:00:55]}  Rg5 {[%clk 0:00:06]} 75. Kd6 {[%clk 0:00:56]}  Rg6+ {[%clk 0:00:06]} 76. Kc7 {[%clk 0:00:54]}  Rxa6 {[%clk 0:00:06]} 77. Ne7 {[%clk 0:00:53]} 1-0


[Site "https://www.chess.com"]

[Event "Titled Tuesday Blitz February 07 Early 2023"]
[White "Akobian, Varuzhan"]
[Black "Bilan, Danila"]
[WhiteFideId "13300580"]
[BlackFideId "24161918"]
[WhiteElo "2591"]
[BlackElo "2303"]
[Result "1-0"]
[Round "04"]
[TimeControl "180+2"]
[Date "2023.02.07"]
[WhiteClock "0:01:53"]
[BlackClock "0:00:14"]

1. d4 {[%clk 0:03:00]}  d5 {[%clk 0:02:58]} 2. c4 {[%clk 0:03:00]}  c6 {[%clk 0:02:58]} 3. cxd5 {[%clk 0:03:00]}  cxd5 {[%clk 0:02:54]} 4. Nf3 {[%clk 0:03:01]}  Nf6 {[%clk 0:02:54]} 5. Nc3 {[%clk 0:03:01]}  Nc6 {[%clk 0:02:54]} 6. Bf4 {[%clk 0:03:00]}  Bf5 {[%clk 0:02:47]} 7. e3 {[%clk 0:02:58]}  e6 {[%clk 0:02:47]} 8. Qb3 {[%clk 0:02:58]}  Qb6 {[%clk 0:02:41]} 9. Bb5 {[%clk 0:02:57]}  Nd7 {[%clk 0:02:32]} 10. O-O {[%clk 0:02:56]}  a6 {[%clk 0:02:30]} 11. Bxc6 {[%clk 0:02:54]}  bxc6 {[%clk 0:02:09]} 12. Rfc1 {[%clk 0:02:52]}  Qxb3 {[%clk 0:02:00]} 13. axb3 {[%clk 0:02:51]}  Bb4 {[%clk 0:01:34]} 14. Na4 {[%clk 0:02:50]}  Rc8 {[%clk 0:01:31]} 15. Ne5 {[%clk 0:02:50]}  Nxe5 {[%clk 0:01:22]} 16. Bxe5 {[%clk 0:02:50]}  f6 {[%clk 0:01:16]} 17. Bg3 {[%clk 0:02:48]}  Bd3 {[%clk 0:00:59]} 18. Nb6 {[%clk 0:02:45]}  Ke7 {[%clk 0:00:40]} 19. Nxc8+ {[%clk 0:02:43]}  Rxc8 {[%clk 0:00:41]} 20. h4 {[%clk 0:02:24]}  Bb5 {[%clk 0:00:40]} 21. Rd1 {[%clk 0:02:12]}  Be2 {[%clk 0:00:39]} 22. Rdc1 {[%clk 0:02:12]}  Bb5 {[%clk 0:00:39]} 23. Bf4 {[%clk 0:02:11]}  h6 {[%clk 0:00:34]} 24. h5 {[%clk 0:02:10]}  Bd2 {[%clk 0:00:32]} 25. Rc2 {[%clk 0:02:08]}  Bb4 {[%clk 0:00:32]} 26. f3 {[%clk 0:02:06]}  Kd7 {[%clk 0:00:26]} 27. Rd1 {[%clk 0:02:01]}  f5 {[%clk 0:00:21]} 28. Be5 {[%clk 0:02:00]}  Bf8 {[%clk 0:00:21]} 29. Kf2 {[%clk 0:01:57]}  Ra8 {[%clk 0:00:21]} 30. Rg1 {[%clk 0:01:54]}  Bd3 {[%clk 0:00:17]} 31. Rd2 {[%clk 0:01:53]}  Bb5 {[%clk 0:00:17]} 32. g4 {[%clk 0:01:53]}  fxg4 {[%clk 0:00:14]} 33. Rxg4 {[%clk 0:01:53]} 1-0


[Site "https://www.chess.com"]